[Event "Pobeskydi 2026"]
[Site "Frydek-Mistek, Czech Republic"]
[Date "2026.04.05"]
[Round "7.6"]
[White "Lichorad, Mateusz"]
[Black "Hrckova, Anna"]
[Result "1-0"]
[TimeControl "90 min+30s/move"]
[WhiteTitle "-"]
[BlackTitle "-"]
[WhiteFideId "21817693"]
[BlackFideId "23763507"]
[WhiteElo "2039"]
[BlackElo "1778"]

1. e4 {[%clk 01:29:53]} {[%emt 00:01:06]} e6 {[%clk 01:30:55]} {[%emt
00:00:06]} 2. d4 {[%clk 01:30:18]} {[%emt 00:00:05]} d5 {[%clk 01:31:18]}
{[%emt 00:00:07]} 3. Nc3 {[%clk 01:30:38]} {[%emt 00:00:09]} Bb4 {[%clk
01:31:15]} {[%emt 00:00:34]} 4. e5 {[%clk 01:31:04]} {[%emt 00:00:04]} c5
{[%clk 01:31:21]} {[%emt 00:00:24]} 5. a3 {[%clk 01:31:33]} {[%emt 00:00:01]}
Bxc3+ {[%clk 01:31:36]} {[%emt 00:00:15]} 6. bxc3 {[%clk 01:32:01]} {[%emt
00:00:01]} Ne7 {[%clk 01:31:53]} {[%emt 00:00:13]} 7. Qg4 {[%clk 01:32:27]}
{[%emt 00:00:04]} Nf5 {[%clk 01:32:14]} {[%emt 00:00:09]} 8. Bd3 {[%clk
01:31:19]} {[%emt 00:01:38]} h5 {[%clk 01:31:42]} {[%emt 00:01:03]} 9. Qf4
{[%clk 01:26:48]} {[%emt 00:05:01]} Qh4 {[%clk 01:30:48]} {[%emt 00:01:24]} 10.
Qxh4 {[%clk 01:22:53]} {[%emt 00:04:25]} Nxh4 {[%clk 01:31:12]} {[%emt
00:00:06]} 11. Bg5 {[%clk 01:22:04]} {[%emt 00:01:19]} Nf5 {[%clk 01:31:22]}
{[%emt 00:00:19]} 12. Ne2 {[%clk 01:15:22]} {[%emt 00:07:12]} Nc6 {[%clk
01:27:14]} {[%emt 00:04:38]} 13. dxc5 {[%clk 01:01:58]} {[%emt 00:13:55]} Bd7
{[%clk 01:22:07]} {[%emt 00:05:37]} 14. Rb1 {[%clk 00:59:20]} {[%emt 00:03:08]}
Rb8 {[%clk 01:16:40]} {[%emt 00:05:57]} 15. Bf4 {[%clk 00:53:30]} {[%emt
00:06:19]} Nfe7 {[%emt 00:03:16]} 16. Nd4 {[%clk 00:51:35]} {[%emt 00:02:24]}
a6 {[%clk 01:14:06]} {[%emt 00:00:20]} 17. Nxc6 {[%clk 00:50:50]} {[%emt
00:01:15]} Nxc6 {[%clk 01:09:40]} {[%emt 00:04:56]} 18. O-O {[%clk 00:50:46]}
{[%emt 00:00:33]} Kd8 {[%clk 00:52:23]} {[%emt 00:17:48]} 19. c4 {[%clk
00:48:11]} {[%emt 00:03:04]} dxc4 {[%clk 00:50:51]} {[%emt 00:02:03]} 20. Bxc4
{[%clk 00:48:40]} {[%emt 00:00:01]} Kc7 {[%clk 00:50:17]} {[%emt 00:01:04]} 21.
Rfd1 {[%clk 00:46:17]} {[%emt 00:02:52]} Ne7 {[%clk 00:44:18]} {[%emt
00:06:28]} 22. Bd2 {[%clk 00:43:46]} {[%emt 00:03:02]} Ba4 {[%clk 00:36:45]}
{[%emt 00:08:03]} 23. Ba5+ {[%clk 00:41:59]} {[%emt 00:02:17]} Kc6 {[%clk
00:36:30]} {[%emt 00:00:46]} 24. Rd6+ {[%clk 00:39:56]} {[%emt 00:02:33]} Kxc5
{[%clk 00:36:25]} {[%emt 00:00:35]} 25. Be2 {[%clk 00:38:26]} {[%emt 00:01:59]}
Nd5 {[%clk 00:32:28]} {[%emt 00:04:28]} 26. c4 {[%clk 00:36:21]} {[%emt
00:02:35]} b6 {[%clk 00:29:36]} {[%emt 00:03:21]} 27. Bb4+ {[%clk 00:35:02]}
{[%emt 00:01:49]} Kd4 {[%clk 00:30:02]} {[%emt 00:00:04]} 28. cxd5 {[%clk
00:35:09]} {[%emt 00:00:24]} a5 {[%clk 00:29:41]} {[%emt 00:00:51]} 29. Bd2
{[%clk 00:35:09]} {[%emt 00:00:29]} Kxe5 {[%clk 00:29:22]} {[%emt 00:00:50]} 30.
Rdxb6 {[%clk 00:34:51]} {[%emt 00:00:48]} Rxb6 {[%clk 00:29:09]} {[%emt
00:00:43]} 31. Rxb6 {[%clk 00:35:20]} Rc8 {[%clk 00:29:09]} {[%emt 00:00:29]}
32. Rb2 {[%clk 00:35:11]} {[%emt 00:00:39]} exd5 {[%clk 00:29:18]} {[%emt
00:00:22]} 33. h3 {[%clk 00:34:53]} {[%emt 00:00:48]} Bc2 {[%clk 00:27:45]}
{[%emt 00:02:03]} 34. Bxa5 {[%clk 00:33:39]} {[%emt 00:01:43]} d4 {[%clk
00:27:58]} {[%emt 00:00:17]} 35. Rb5+ {[%clk 00:33:35]} {[%emt 00:00:34]} Kf6
{[%clk 00:27:19]} {[%emt 00:01:10]} 36. Rd5 {[%clk 00:32:18]} {[%emt 00:01:46]}
Re8 {[%clk 00:25:58]} {[%emt 00:01:52]} 37. Bb5 {[%clk 00:32:17]} {[%emt
00:00:30]} Rb8 {[%clk 00:25:24]} {[%emt 00:01:04]} 38. a4 {[%clk 00:32:04]}
{[%emt 00:00:44]} d3 {[%clk 00:25:50]} {[%emt 00:00:03]} 39. Bxd3 {[%clk
00:31:58]} {[%emt 00:00:37]} Bxa4 {[%clk 00:26:06]} {[%emt 00:00:14]} 40. Rxh5
{[%clk 00:31:40]} {[%emt 00:00:47]} Rc8 {[%clk 00:26:05]} {[%emt 00:00:30]} 41.
Rf5+ {[%clk 00:31:41]} {[%emt 00:00:30]} Ke6 {[%clk 00:25:56]} {[%emt
00:00:39]} 42. Rf4 {[%clk 00:31:59]} {[%emt 00:00:12]} Rc1+ {[%clk 00:26:20]}
{[%emt 00:00:07]} 43. Kh2 {[%clk 00:32:15]} Bb3 {[%clk 00:26:09]} {[%emt
00:00:54]} 44. Rb4 {[%clk 00:31:36]} Bd5 {[%clk 00:25:34]} {[%emt 00:02:14]} 45.
Be4 {[%clk 00:31:33]} Ba2 {[%clk 00:25:34]} 46. f4 {[%emt 00:02:50]} Rf1 {[%clk
00:23:33]} {[%emt 00:01:22]} 47. Rb6+ {[%clk 00:31:34]} {[%emt 00:00:22]} Kd7
{[%clk 00:23:22]} {[%emt 00:00:41]} 48. Bf5+ {[%clk 00:31:44]} {[%emt
00:00:20]} Ke8 {[%emt 00:00:11]} 49. Bb4 {[%emt 00:01:47]} 1-0

[Event "Pobeskydi 2026"]
[Site "Frydek-Mistek, Czech Republic"]
[Date "2026.04.05"]
[Round "7.7"]
[White "Skorupa, Tobias"]
[Black "Sigut, Ondrej"]
[Result "1/2-1/2"]
[TimeControl "90 min+30s/move"]
[WhiteTitle "-"]
[BlackTitle "-"]
[WhiteFideId "23777494"]
[BlackFideId "23712813"]
[WhiteElo "1859"]
[BlackElo "2016"]

1. d4 {[%clk 01:30:56]} {[%emt 00:00:04]} e6 {[%clk 01:30:54]} {[%emt
00:00:07]} 2. c4 {[%clk 01:31:11]} {[%emt 00:00:15]} f5 {[%clk 01:28:44]}
{[%emt 00:02:41]} 3. Nf3 {[%clk 01:31:09]} {[%emt 00:00:31]} Nf6 {[%clk
01:28:38]} {[%emt 00:00:36]} 4. g3 {[%clk 01:31:04]} {[%emt 00:00:35]} b6
{[%clk 01:28:00]} {[%emt 00:01:09]} 5. Bg2 {[%clk 01:31:11]} {[%emt 00:00:22]}
Bb7 {[%clk 01:28:13]} {[%emt 00:00:17]} 6. O-O {[%clk 01:29:56]} {[%emt
00:01:44]} Be7 {[%clk 01:27:44]} {[%emt 00:01:00]} 7. Nc3 {[%clk 01:28:49]}
{[%emt 00:01:36]} O-O {[%clk 01:25:58]} {[%emt 00:02:17]} 8. d5 {[%clk
01:20:10]} {[%emt 00:09:10]} a5 {[%clk 01:11:27]} {[%emt 00:15:01]} 9. Nd4
{[%clk 01:12:54]} {[%emt 00:07:46]} Qc8 {[%clk 00:47:45]} {[%emt 00:24:12]} 10.
Bf3 {[%clk 00:58:46]} {[%emt 00:14:38]} c6 {[%clk 00:28:31]} {[%emt 00:19:43]}
11. Bf4 {[%clk 00:48:23]} {[%emt 00:10:52]} cxd5 {[%clk 00:24:04]} {[%emt
00:04:58]} 12. cxd5 {[%clk 00:48:32]} {[%emt 00:00:21]} Nxd5 {[%clk 00:21:28]}
{[%emt 00:03:06]} 13. Nxd5 {[%clk 00:47:49]} {[%emt 00:01:13]} Bxd5 {[%clk
00:20:47]} {[%emt 00:01:12]} 14. Bxd5 {[%clk 00:47:19]} {[%emt 00:01:00]} exd5
{[%clk 00:21:10]} {[%emt 00:00:06]} 15. Rc1 {[%clk 00:40:53]} {[%emt 00:06:55]}
Bc5 {[%clk 00:19:20]} {[%emt 00:02:21]} 16. Qb3 {[%clk 00:40:30]} {[%emt
00:00:53]} Qe8 {[%clk 00:14:08]} {[%emt 00:05:42]} 17. Qxd5+ {[%clk 00:40:22]}
{[%emt 00:00:37]} Qf7 {[%clk 00:14:35]} {[%emt 00:00:04]} 18. Qxf7+ {[%clk
00:31:30]} {[%emt 00:09:22]} Rxf7 {[%clk 00:14:48]} {[%emt 00:00:17]} 19. Rfd1
{[%clk 00:30:20]} {[%emt 00:01:40]} 1/2-1/2

[Event "Pobeskydi 2026"]
[Site "Frydek-Mistek, Czech Republic"]
[Date "2026.04.05"]
[Round "7.8"]
[White "Janovicek, Lukas"]
[Black "Ocelak, David"]
[Result "1/2-1/2"]
[TimeControl "90 min+30s/move"]
[WhiteTitle "-"]
[BlackTitle "-"]
[WhiteFideId "14975831"]
[BlackFideId "23728795"]
[WhiteElo "1846"]
[BlackElo "2009"]

1. e4 {[%clk 01:30:56]} {[%emt 00:00:03]} c6 {[%clk 01:30:01]} {[%emt
00:00:59]} 2. d4 {[%clk 01:30:57]} {[%emt 00:00:29]} d5 {[%clk 01:29:57]}
{[%emt 00:00:34]} 3. Nc3 {[%clk 01:31:07]} {[%emt 00:00:20]} dxe4 {[%clk
01:29:45]} {[%emt 00:00:42]} 4. Nxe4 {[%clk 01:31:28]} {[%emt 00:00:09]} Nf6
{[%clk 01:29:49]} {[%emt 00:00:27]} 5. Nxf6+ {[%clk 01:31:18]} {[%emt
00:00:39]} exf6 {[%clk 01:29:18]} {[%emt 00:01:01]} 6. Bc4 {[%clk 01:31:25]}
{[%emt 00:00:21]} Bd6 {[%clk 01:28:54]} {[%emt 00:00:56]} 7. Qe2+ {[%clk
01:30:43]} {[%emt 00:01:11]} Qe7 {[%clk 01:26:48]} {[%emt 00:02:37]} 8. Qxe7+
{[%clk 01:30:20]} {[%emt 00:00:53]} Kxe7 {[%clk 01:24:04]} {[%emt 00:03:14]} 9.
Ne2 {[%clk 01:28:25]} {[%emt 00:02:25]} Be6 {[%clk 01:17:39]} {[%emt 00:06:54]}
10. Bd3 {[%clk 01:25:09]} {[%emt 00:03:47]} Nd7 {[%clk 01:06:29]} {[%emt
00:11:41]} 11. Bf4 {[%clk 01:17:18]} {[%emt 00:08:19]} g6 {[%clk 00:51:31]}
{[%emt 00:15:28]} 12. O-O {[%clk 01:07:30]} {[%emt 00:10:18]} Nb6 {[%clk
00:49:17]} {[%emt 00:02:45]} 13. Rfe1 {[%clk 00:56:54]} {[%emt 00:11:05]} Kd7
{[%clk 00:42:55]} {[%emt 00:06:53]} 14. Bxd6 {[%clk 00:54:14]} {[%emt
00:03:09]} Kxd6 {[%clk 00:43:18]} {[%emt 00:00:08]} 15. Nf4 {[%clk 00:52:34]}
{[%emt 00:02:09]} Rhe8 {[%clk 00:40:34]} {[%emt 00:03:14]} 16. Re3 {[%clk
00:46:20]} {[%emt 00:06:43]} 1/2-1/2

[Event "Pobeskydi 2026"]
[Site "Frydek-Mistek, Czech Republic"]
[Date "2026.04.05"]
[Round "7.9"]
[White "Zeman, Daniel Nikolas"]
[Black "Sulcova, Tereza Radmila"]
[Result "1-0"]
[TimeControl "90 min+30s/move"]
[WhiteTitle "-"]
[BlackTitle "-"]
[WhiteFideId "23717130"]
[BlackFideId "395196"]
[WhiteElo "1957"]
[BlackElo "1919"]

1. d4 {[%clk 01:30:57]} {[%emt 00:00:03]} e6 {[%clk 01:30:42]} {[%emt
00:00:18]} 2. c4 {[%clk 01:31:18]} {[%emt 00:00:08]} Bb4+ {[%clk 01:31:04]}
{[%emt 00:00:08]} 3. Nc3 {[%clk 01:31:42]} {[%emt 00:00:07]} Bxc3+ {[%clk
01:31:20]} {[%emt 00:00:15]} 4. bxc3 {[%clk 01:32:10]} f5 {[%clk 01:31:41]}
{[%emt 00:00:08]} 5. Nf3 {[%clk 01:31:13]} {[%emt 00:01:27]} Nf6 {[%clk
01:31:50]} {[%emt 00:00:22]} 6. e3 {[%clk 01:24:15]} {[%emt 00:07:29]} O-O
{[%clk 01:27:37]} {[%emt 00:04:41]} 7. Bd3 {[%clk 01:23:54]} {[%emt 00:00:51]}
b6 {[%clk 01:27:18]} {[%emt 00:00:49]} 8. Ba3 {[%clk 01:23:29]} {[%emt
00:00:56]} d6 {[%clk 01:25:58]} {[%emt 00:01:49]} 9. c5 {[%clk 01:21:41]}
{[%emt 00:02:19]} Ne4 {[%clk 01:15:49]} {[%emt 00:10:38]} 10. cxd6 {[%clk
01:16:12]} {[%emt 00:05:59]} cxd6 {[%clk 01:15:16]} {[%emt 00:01:04]} 11. Qb3
{[%clk 01:10:48]} {[%emt 00:05:53]} Rf6 {[%clk 01:08:10]} {[%emt 00:07:36]} 12.
c4 {[%clk 01:02:36]} {[%emt 00:08:43]} Ba6 {[%clk 01:03:28]} {[%emt 00:05:12]}
13. O-O {[%clk 00:55:13]} {[%emt 00:07:53]} Nc6 {[%clk 00:59:28]} {[%emt
00:04:29]} 14. d5 {[%clk 00:43:23]} {[%emt 00:12:20]} Na5 {[%clk 00:54:20]}
{[%emt 00:05:38]} 15. Qb1 {[%clk 00:40:55]} {[%emt 00:02:58]} e5 {[%clk
00:51:21]} {[%emt 00:03:29]} 16. Rc1 {[%clk 00:37:43]} {[%emt 00:03:43]} Rc8
{[%clk 00:46:35]} {[%emt 00:05:16]} 17. Bxe4 {[%clk 00:34:25]} {[%emt
00:03:48]} fxe4 {[%clk 00:45:56]} {[%emt 00:01:08]} 18. Qxe4 {[%clk 00:34:14]}
{[%emt 00:00:42]} Nxc4 {[%clk 00:44:32]} {[%emt 00:01:54]} 19. Bb4 {[%clk
00:32:54]} {[%emt 00:01:49]} Nb2 {[%clk 00:37:51]} {[%emt 00:07:11]} 20. Ng5
{[%clk 00:29:03]} {[%emt 00:04:22]} Bd3 {[%clk 00:32:31]} {[%emt 00:05:50]} 21.
Qh4 {[%clk 00:27:44]} {[%emt 00:01:49]} Bf5 {[%clk 00:24:52]} {[%emt 00:08:09]}
22. e4 {[%clk 00:26:20]} {[%emt 00:01:54]} Rh6 {[%clk 00:22:59]} {[%emt
00:02:22]} 23. Qg3 {[%clk 00:25:58]} {[%emt 00:00:52]} Bd7 {[%clk 00:18:51]}
{[%emt 00:04:39]} 24. Ne6 {[%clk 00:24:02]} {[%emt 00:02:26]} Bxe6 {[%clk
00:17:57]} {[%emt 00:01:24]} 25. dxe6 {[%clk 00:24:00]} {[%emt 00:00:32]} Nc4
{[%clk 00:18:00]} {[%emt 00:00:26]} 26. Qd3 {[%clk 00:19:18]} {[%emt 00:05:12]}
b5 {[%clk 00:15:57]} {[%emt 00:02:33]} 27. a4 {[%clk 00:17:59]} {[%emt
00:01:50]} Qh4 {[%clk 00:15:17]} {[%emt 00:01:08]} 28. h3 {[%clk 00:16:39]}
{[%emt 00:01:52]} Rf8 {[%clk 00:14:58]} {[%emt 00:00:50]} 29. Ra2 {[%clk
00:15:23]} {[%emt 00:01:45]} a6 {[%clk 00:12:39]} {[%emt 00:02:48]} 30. axb5
{[%clk 00:15:40]} {[%emt 00:00:14]} axb5 {[%clk 00:12:57]} {[%emt 00:00:13]} 31.
Qd5 {[%clk 00:15:41]} {[%emt 00:00:28]} Nb6 {[%clk 00:10:09]} {[%emt 00:03:18]}
32. Qxd6 {[%clk 00:15:53]} {[%emt 00:00:18]} Rd8 {[%clk 00:10:29]} {[%emt
00:00:10]} 33. Qxb6 {[%clk 00:15:44]} {[%emt 00:00:39]} Qg5 {[%clk 00:10:51]}
{[%emt 00:00:08]} 34. Bd2 {[%clk 00:15:27]} {[%emt 00:00:47]} 1-0

[Event "Pobeskydi 2026"]
[Site "Frydek-Mistek, Czech Republic"]
[Date "2026.04.05"]
[Round "7.10"]
[White "Brousek, Jiri"]
[Black "Buchtova, Viktorie"]
[Result "0-1"]
[TimeControl "90 min+30s/move"]
[WhiteTitle "-"]
[BlackTitle "-"]
[WhiteFideId "314021"]
[BlackFideId "23714786"]
[WhiteElo "1915"]
[BlackElo "2055"]

1. d4 {[%clk 01:30:51]} {[%emt 00:00:08]} Nf6 {[%clk 01:30:58]} {[%emt
00:00:03]} 2. Nf3 {[%clk 01:31:08]} {[%emt 00:00:12]} e6 {[%clk 01:31:20]}
{[%emt 00:00:09]} 3. e3 {[%clk 01:31:28]} {[%emt 00:00:09]} d5 {[%clk
01:31:45]} {[%emt 00:00:06]} 4. Bd3 {[%clk 01:31:50]} {[%emt 00:00:08]} c5
{[%clk 01:32:03]} {[%emt 00:00:12]} 5. b3 {[%clk 01:32:12]} {[%emt 00:00:08]}
Nc6 {[%clk 01:32:24]} {[%emt 00:00:10]} 6. Bb2 {[%clk 01:32:33]} {[%emt
00:00:08]} b6 {[%clk 01:32:38]} {[%emt 00:00:17]} 7. Nbd2 {[%clk 01:32:46]}
{[%emt 00:00:16]} Bb7 {[%clk 01:32:33]} {[%emt 00:00:35]} 8. O-O {[%clk
01:32:58]} {[%emt 00:00:17]} Rc8 {[%clk 01:32:16]} {[%emt 00:00:48]} 9. a3
{[%clk 01:33:16]} {[%emt 00:00:12]} cxd4 {[%clk 01:32:34]} {[%emt 00:00:13]} 10.
exd4 {[%clk 01:33:36]} {[%emt 00:00:08]} g6 {[%clk 01:32:26]} {[%emt 00:00:39]}
11. Ne5 {[%clk 01:33:16]} {[%emt 00:00:50]} Bg7 {[%clk 01:32:19]} {[%emt
00:00:37]} 12. f4 {[%clk 01:32:40]} {[%emt 00:01:06]} O-O {[%clk 01:32:13]}
{[%emt 00:00:35]} 13. Qe2 {[%clk 01:30:12]} {[%emt 00:02:58]} Ne7 {[%clk
01:31:26]} {[%emt 00:01:18]} 14. g4 {[%clk 01:29:04]} {[%emt 00:01:37]} Qc7
{[%clk 01:24:59]} {[%emt 00:06:58]} 15. Rf2 {[%clk 01:24:14]} {[%emt 00:05:19]}
Ne8 {[%clk 01:10:18]} {[%emt 00:15:12]} 16. Qe3 {[%clk 01:13:55]} {[%emt
00:10:49]} Nd6 {[%clk 01:07:11]} {[%emt 00:03:38]} 17. Raf1 {[%clk 01:07:05]}
{[%emt 00:07:18]} f5 {[%clk 01:00:20]} {[%emt 00:07:21]} 18. Ndf3 {[%clk
00:59:35]} {[%emt 00:07:59]} Ne4 {[%clk 00:53:35]} {[%emt 00:07:16]} 19. Ng5
{[%clk 00:56:16]} {[%emt 00:03:49]} Bxe5 {[%clk 00:46:07]} {[%emt 00:07:59]} 20.
Bxe4 {[%clk 00:54:30]} {[%emt 00:02:16]} dxe4 {[%clk 00:44:45]} {[%emt
00:01:52]} 21. fxe5 {[%clk 00:46:44]} {[%emt 00:08:15]} Nd5 {[%clk 00:39:05]}
{[%emt 00:06:11]} 22. Qh3 {[%clk 00:43:03]} {[%emt 00:04:11]} Qe7 {[%clk
00:37:59]} {[%emt 00:01:36]} 23. Bc1 {[%clk 00:36:59]} {[%emt 00:06:34]} e3
{[%clk 00:22:31]} {[%emt 00:15:58]} 24. Bxe3 {[%clk 00:34:44]} {[%emt
00:02:44]} Rc3 {[%clk 00:21:13]} {[%emt 00:01:48]} 25. Rf3 {[%clk 00:29:52]}
{[%emt 00:05:22]} Rxc2 {[%clk 00:20:31]} {[%emt 00:01:13]} 26. gxf5 {[%clk
00:15:27]} {[%emt 00:14:55]} exf5 {[%clk 00:19:26]} {[%emt 00:01:35]} 27. R3f2
{[%clk 00:11:27]} {[%emt 00:04:30]} Rxf2 {[%clk 00:16:29]} {[%emt 00:03:26]} 28.
Rxf2 {[%clk 00:11:11]} {[%emt 00:00:47]} Nxe3 {[%clk 00:16:49]} {[%emt
00:00:10]} 29. Qxe3 {[%clk 00:11:27]} {[%emt 00:00:14]} f4 {[%clk 00:16:57]}
{[%emt 00:00:22]} 0-1

[Event "Pobeskydi 2026"]
[Site "Frydek-Mistek, Czech Republic"]
[Date "2026.04.05"]
[Round "7.11"]
[White "Slamecka, David"]
[Black "Trybus, Daniel"]
[Result "0-1"]
[TimeControl "90 min+30s/move"]
[WhiteTitle "-"]
[BlackTitle "-"]
[WhiteFideId "23761849"]
[BlackFideId "21816131"]
[WhiteElo "1906"]
[BlackElo "2055"]

1. d4 {[%clk 01:30:53]} {[%emt 00:00:06]} Nf6 {[%clk 01:29:05]} {[%emt
00:01:56]} 2. Bg5 {[%clk 01:31:03]} {[%emt 00:00:20]} Nc6 {[%clk 01:29:13]}
{[%emt 00:00:22]} 3. Bxf6 {[%clk 01:29:33]} {[%emt 00:02:00]} gxf6 {[%clk
01:29:04]} {[%emt 00:00:39]} 4. d5 {[%clk 01:29:16]} {[%emt 00:00:47]} Nb8
{[%clk 01:29:18]} {[%emt 00:00:17]} 5. e4 {[%clk 01:28:08]} {[%emt 00:01:38]}
e5 {[%clk 01:29:39]} {[%emt 00:00:09]} 6. Nd2 {[%clk 01:23:08]} {[%emt
00:05:29]} d6 {[%clk 01:29:46]} {[%emt 00:00:23]} 7. Bd3 {[%clk 01:21:38]}
{[%emt 00:02:00]} c6 {[%clk 01:29:31]} {[%emt 00:00:45]} 8. c4 {[%clk
01:20:23]} {[%emt 00:01:45]} Rg8 {[%clk 01:23:00]} {[%emt 00:07:01]} 9. g3
{[%clk 01:17:36]} {[%emt 00:03:17]} Na6 {[%clk 01:22:29]} {[%emt 00:01:02]} 10.
Nb3 {[%clk 01:16:05]} {[%emt 00:01:59]} Bh6 {[%clk 01:21:06]} {[%emt 00:01:54]}
11. h3 {[%clk 01:08:14]} {[%emt 00:08:21]} Nb4 {[%clk 01:17:25]} {[%emt
00:04:12]} 12. Ne2 {[%clk 01:07:36]} {[%emt 00:01:06]} c5 {[%clk 01:15:41]}
{[%emt 00:02:15]} 13. g4 {[%clk 01:00:13]} {[%emt 00:07:53]} f5 {[%clk
01:06:17]} {[%emt 00:09:54]} 14. exf5 {[%clk 00:58:37]} {[%emt 00:02:06]} Nxd3+
{[%clk 01:04:31]} {[%emt 00:02:17]} 15. Qxd3 {[%clk 00:55:32]} {[%emt
00:03:34]} b5 {[%clk 01:02:28]} {[%emt 00:02:34]} 16. Ng3 {[%clk 00:45:38]}
{[%emt 00:10:23]} bxc4 {[%clk 00:59:41]} {[%emt 00:03:18]} 17. Qxc4 {[%clk
00:45:22]} {[%emt 00:00:45]} Qb6 {[%clk 00:54:05]} {[%emt 00:06:06]} 18. Ne4
{[%clk 00:43:15]} {[%emt 00:02:37]} Ke7 {[%clk 00:52:47]} {[%emt 00:01:49]} 19.
Qa4 {[%clk 00:32:31]} {[%emt 00:11:14]} Rb8 {[%clk 00:50:34]} {[%emt 00:02:42]}
20. f6+ {[%clk 00:28:42]} {[%emt 00:04:19]} Kf8 {[%clk 00:50:47]} {[%emt
00:00:17]} 21. Qa5 {[%clk 00:27:16]} {[%emt 00:01:57]} Ba6 {[%clk 00:49:16]}
{[%emt 00:02:01]} 22. Ned2 {[%clk 00:16:45]} {[%emt 00:11:00]} Rg6 {[%clk
00:37:57]} {[%emt 00:11:51]} 23. Qa4 {[%clk 00:11:54]} {[%emt 00:05:16]} Rxf6
{[%clk 00:36:14]} {[%emt 00:02:18]} 24. Qe4 {[%clk 00:11:58]} {[%emt 00:00:25]}
c4 {[%clk 00:35:08]} {[%emt 00:01:37]} 25. Nxc4 {[%clk 00:10:04]} {[%emt
00:02:24]} Qxf2+ {[%clk 00:34:43]} {[%emt 00:00:55]} 26. Kd1 {[%clk 00:10:31]}
{[%emt 00:00:02]} Rf4 {[%clk 00:34:34]} {[%emt 00:00:39]} 0-1

[Event "Pobeskydi 2026"]
[Site "Frydek-Mistek, Czech Republic"]
[Date "2026.04.05"]
[Round "8.1"]
[White "Gnojek, Petr"]
[Black "Walek, Petr"]
[Result "1/2-1/2"]
[TimeControl "90 min+30s/move"]
[WhiteTitle "-"]
[BlackTitle "-"]
[WhiteFideId "371807"]
[BlackFideId "339393"]
[WhiteElo "2401"]
[BlackElo "2304"]

1. d4 {[%clk 01:30:56]} {[%emt 00:00:04]} e6 {[%clk 01:30:51]} {[%emt
00:00:08]} 2. c4 {[%clk 01:31:17]} {[%emt 00:00:09]} b6 {[%clk 01:31:02]}
{[%emt 00:00:20]} 3. Nc3 {[%clk 01:30:50]} {[%emt 00:00:56]} Bb4 {[%clk
01:31:08]} {[%emt 00:00:26]} 4. Bd2 {[%clk 01:31:07]} {[%emt 00:00:12]} Bb7
{[%clk 01:30:30]} {[%emt 00:01:08]} 5. Nf3 {[%clk 01:31:16]} {[%emt 00:00:21]}
Nf6 {[%clk 01:30:23]} {[%emt 00:00:37]} 6. e3 {[%clk 01:31:29]} {[%emt
00:00:17]} Bxc3 {[%clk 01:30:18]} {[%emt 00:00:36]} 7. Bxc3 {[%clk 01:31:53]}
{[%emt 00:00:06]} Ne4 {[%clk 01:30:41]} {[%emt 00:00:07]} 8. Rc1 {[%clk
01:29:15]} {[%emt 00:03:09]} O-O {[%clk 01:31:00]} {[%emt 00:00:09]} 9. Be2
{[%clk 01:29:07]} {[%emt 00:00:40]} d6 {[%clk 01:28:49]} {[%emt 00:02:41]} 10.
O-O {[%clk 01:28:55]} {[%emt 00:00:40]} Nxc3 {[%clk 01:28:50]} {[%emt
00:00:30]} 11. Rxc3 {[%clk 01:29:19]} {[%emt 00:00:06]} Nd7 {[%clk 01:28:34]}
{[%emt 00:00:46]} 12. Nd2 {[%clk 01:19:07]} {[%emt 00:10:42]} Qf6 {[%clk
01:09:26]} {[%emt 00:19:38]} 13. Bf3 {[%clk 01:16:40]} {[%emt 00:02:58]} Bxf3
{[%clk 01:09:32]} {[%emt 00:00:24]} 14. Qxf3 {[%clk 01:16:16]} {[%emt
00:00:53]} Qxf3 {[%clk 01:09:37]} {[%emt 00:00:24]} 15. Nxf3 {[%clk 01:16:41]}
{[%emt 00:00:05]} a5 {[%clk 00:57:32]} {[%emt 00:12:37]} 16. Rd1 {[%clk
01:13:00]} {[%emt 00:04:11]} f6 {[%clk 00:52:39]} {[%emt 00:05:24]} 17. Nd2
{[%clk 01:02:23]} {[%emt 00:11:06]} Rfe8 {[%clk 00:49:49]} {[%emt 00:03:20]} 18.
Nb1 {[%clk 01:02:36]} {[%emt 00:00:17]} e5 {[%clk 00:43:38]} {[%emt 00:06:41]}
19. Na3 {[%clk 00:56:56]} {[%emt 00:06:10]} exd4 {[%clk 00:42:26]} {[%emt
00:01:43]} 20. Rxd4 {[%clk 00:57:21]} {[%emt 00:00:04]} Nc5 {[%clk 00:37:47]}
{[%emt 00:05:09]} 21. Nb5 {[%clk 00:57:43]} {[%emt 00:00:08]} Na6 {[%clk
00:37:32]} {[%emt 00:00:45]} 22. g4 {[%clk 00:51:05]} {[%emt 00:07:08]} Kf7
{[%clk 00:33:52]} {[%emt 00:04:10]} 23. Kg2 {[%clk 00:51:02]} {[%emt 00:00:33]}
Ke7 {[%clk 00:33:25]} {[%emt 00:00:56]} 24. h4 {[%clk 00:46:31]} {[%emt
00:05:02]} Kd7 {[%clk 00:31:01]} {[%emt 00:02:55]} 25. Rf4 {[%clk 00:46:29]}
{[%emt 00:00:30]} Re5 {[%clk 00:27:41]} {[%emt 00:03:51]} 26. Nd4 {[%clk
00:35:31]} {[%emt 00:11:28]} Nb4 {[%clk 00:24:06]} {[%emt 00:04:06]} 27. a3
{[%clk 00:35:39]} {[%emt 00:00:22]} Nc6 {[%clk 00:24:28]} {[%emt 00:00:07]} 28.
Nf5 {[%clk 00:30:32]} {[%emt 00:05:36]} Ne7 {[%clk 00:24:27]} {[%emt 00:00:31]}
29. Nxe7 {[%clk 00:24:06]} {[%emt 00:06:56]} Kxe7 {[%clk 00:24:40]} {[%emt
00:00:17]} 30. b3 {[%clk 00:24:30]} {[%emt 00:00:07]} h5 {[%clk 00:24:14]}
{[%emt 00:00:56]} 31. gxh5 {[%clk 00:24:55]} {[%emt 00:00:05]} Rxh5 {[%clk
00:21:28]} {[%emt 00:03:16]} 32. Rg4 {[%clk 00:21:48]} {[%emt 00:03:37]} Kf7
{[%clk 00:20:36]} {[%emt 00:01:21]} 33. Kg3 {[%clk 00:21:48]} {[%emt 00:00:30]}
Re8 {[%clk 00:17:10]} {[%emt 00:03:57]} 34. Rc1 {[%clk 00:18:48]} {[%emt
00:03:30]} Ree5 {[%clk 00:13:44]} {[%emt 00:03:56]} 35. b4 {[%clk 00:17:07]}
{[%emt 00:02:11]} g5 {[%clk 00:11:42]} {[%emt 00:02:33]} 36. hxg5 {[%clk
00:16:35]} {[%emt 00:01:02]} Rexg5 {[%clk 00:12:01]} {[%emt 00:00:11]} 37. Rxg5
{[%clk 00:15:19]} {[%emt 00:01:46]} Rxg5+ {[%clk 00:12:30]} 38. Kf4 {[%clk
00:15:02]} {[%emt 00:00:47]} Ke6 {[%clk 00:09:06]} {[%emt 00:03:53]} 39. Ke4
{[%clk 00:15:14]} {[%emt 00:00:17]} axb4 {[%emt 00:04:09]} 1/2-1/2